bitfinex-derivatives/quotes_SOLF0:USTF0_20251020
["timestamp","ask_amount","ask_price","bid_price","bid_amount"]
[1760923649276,6.2446,185.72,185.63,2.84]
[1760923649474,10.31933696,185.72,185.63,2.84]
[1760923649670,6.2446,185.72,185.63,2.84]
[1760923650579,10.32037802,185.72,185.63,2.84]
[1760923650883,4.07577802,185.71,185.63,2.84]
[1760923651279,6.2446,185.72,185.63,2.84]
[1760923651483,1.4,185.69,185.63,2.84]
[1760923651980,1.4,185.73,185.64,2.84]
[1760923652283,5.47829811,185.73,185.64,2.84]
[1760923652489,124.91324159,185.77,185.67,2.84]
[1760923652689,8.93774059,185.76,185.67,2.84]
[1760923652882,4.0786667,185.75,185.67,2.84]
[1760923654078,4.0786667,185.75,185.68,4.8454]
[1760923654283,4.0786667,185.75,185.69,2.84]
[1760923654581,8.9394817,185.76,185.69,2.84]
[1760923654785,4.0786667,185.75,185.69,2.84]
[1760923655586,4.860815,185.76,185.69,2.84]
[1760923655886,4.08138386,185.75,185.69,2.84]
[1760923656083,4.860815,185.76,185.69,2.84]
[1760923656277,4.08138386,185.75,185.69,2.84]
[1760923656481,4.08138386,185.74,185.7,2.84]
[1760923656682,4.08138386,185.75,185.69,2.84]
[1760923656881,4.08138386,185.74,185.69,2.84]
[1760923657081,4.08138386,185.75,185.69,2.84]
[1760923657382,4.860815,185.76,185.69,2.84]
[1760923657585,4.08553807,185.75,185.69,2.84]
[1760923657889,4.860815,185.76,185.7,4.8449]
[1760923658075,4.08553807,185.75,185.71,2.84]
[1760923658280,1.4,185.76,185.71,2.84]
[1760923658487,4.08820041,185.75,185.71,2.84]
[1760923658688,4.08820041,185.74,185.71,2.84]
[1760923658888,1.4,185.76,185.67,7.6855]
[1760923659083,4.08820041,185.75,185.67,7.6855]
[1760923659283,4.08820041,185.74,185.67,7.6855]
[1760923659487,4.08820041,185.73,185.69,2.84]
[1760923659787,123.51324159,185.77,185.7,2.84]
[1760923659986,8.96767516,185.76,185.7,2.84]
[1760923660188,8.96767516,185.75,185.66,2.84]
[1760923660389,8.96767516,185.74,185.66,2.84]
[1760923660687,4.09228053,185.73,185.66,2.84]
[1760923660885,4.764492,185.76,185.66,2.84]
[1760923661094,4.09697509,185.75,185.69,4.8449]
[1760923661290,4.09697509,185.74,185.7,2.84]
[1760923661586,4.09697509,185.73,185.7,2.84]
[1760923661789,4.09697509,185.72,185.7,2.84]
[1760923661984,6.164492,185.75,185.69,4.8449]
[1760923662288,4.10162837,185.74,185.71,2.84]
[1760923662586,4.10162837,185.73,185.71,2.84]
[1760923662788,4.10162837,185.72,185.71,2.84]
[1760923663192,4.69896768,185.78,185.71,1.08]
[1760923663488,4.08440749,185.77,185.72,2.84]
[1760923663682,1.4,185.87,185.78,2.84]
[1760923663683,4.77661456,185.82,185.78,2.84]
[1760923663885,6.62067136,185.88,185.78,2.84]
[1760923664281,6.01152834,185.9,185.83,7.6815]
[1760923664490,1.4,185.9,185.83,7.6815]
[1760923664684,1.4,185.9,185.83,2.84]
[1760923664987,1.4,185.9,185.81,3.25447328]
[1760923665185,3.25447328,185.93,185.82,2.84]
[1760923665186,4.47870253,185.93,185.82,2.84]
[1760923665389,1.4,185.92,185.83,3.25447328]
[1760923665582,1.4,185.92,185.86,3.25447328]
[1760923665788,77.14724709,185.94,185.86,3.25447328]
[1760923666488,1.4,185.95,185.86,3.25447328]
[1760923666693,1.4,185.95,185.84,7.6812]
[1760923667291,1.4,185.96,185.84,2.84]
[1760923667993,1.4,185.93,185.84,2.84]
[1760923668190,11.08766836,185.97,185.84,2.84]
[1760923668191,1.4,185.97,185.84,2.84]
[1760923668888,5.40277932,186.0,185.87,2.9]
[1760923669090,1.4,185.99,185.87,2.9]
[1760923669394,1.4,185.95,185.87,2.9]
[1760923670184,1.4,185.95,185.83,14.56]
[1760923670689,6.2385,185.95,185.84,4.8413]
[1760923672090,1.4,185.94,185.83,14.56]
[1760923672993,4.839,185.93,185.83,14.56]
[1760923673189,1.4,185.94,185.83,14.56]
[1760923675086,6.2388,185.94,185.83,14.56]
[1760923675487,1.4,185.93,185.83,14.56]
[1760923676998,0.93611298,186.0,185.85,2.9]
[1760923676999,1.4,185.96,185.85,2.9]
[1760923677392,4.8385,185.95,185.85,2.9]
[1760923677699,4.85238454,186.0,185.85,2.9]
[1760923677895,4.8389,185.94,185.85,2.9]
[1760923678096,6.2389,185.94,185.85,2.9]
[1760923678600,1.4,185.93,185.85,2.9]
[1760923680793,6.2392,185.93,185.85,2.9]
[1760923681303,1.4,185.9,185.81,2.9]
[1760923681497,8.72659355,185.93,185.81,2.9]
[1760923681697,4.8413,185.84,185.79,44.96]
[1760923681891,1.4,185.83,185.79,44.96]
[1760923682092,1.4,185.82,185.79,44.96]
[1760923682298,6.2413,185.84,185.79,44.96]
[1760923682497,6.2413,185.84,185.8,2.9]
[1760923682699,1.4,185.82,185.79,44.96]
[1760923682898,1.4,185.83,185.79,44.96]
[1760923683099,4.8413,185.84,185.8,2.9]
[1760923683501,1.4,185.83,185.79,44.96]
[1760923683700,4.8413,185.84,185.79,44.96]
[1760923683898,1.4,185.82,185.79,44.96]
[1760923684101,6.2418,185.83,185.76,2.9]
[1760923684300,1.4,185.83,185.74,107.24445364]
[1760923684504,1.4,185.84,185.74,107.24445364]
[1760923684702,1.4,185.8,185.74,107.24445364]
[1760923685603,1.4,185.8,185.72,44.98]
[1760923685801,1.4,185.8,185.72,47.88]
[1760923686399,4.842,185.82,185.73,2.9]
[1760923688001,1.4,185.84,185.74,2.9]
[1760923688607,1.4,185.82,185.74,2.9]
[1760923689498,1.4,185.87,185.76,2.9]
[1760923690104,6.2405,185.87,185.76,2.9]
[1760923690498,1.4,185.86,185.76,2.9]
[1760923690703,6.2416,185.83,185.76,2.9]
[1760923691208,1.4,185.86,185.76,2.9]
[1760923691601,1.4,185.9,185.76,2.9]
[1760923691803,1.4,185.86,185.76,7.7431]
[1760923692402,1.4,185.86,185.77,2.79]
[1760923693005,5.32784466,185.9,185.77,2.79]
[1760923693204,8.72659355,185.88,185.77,2.79]
[1760923693397,1.4,185.86,185.77,2.79]
[1760923693603,6.2415,185.83,185.77,2.79]
[1760923693807,6.2415,185.83,185.73,7.6339]
[1760923693998,1.4,185.83,185.73,2.79]
[1760923694202,8.72659355,185.88,185.73,2.79]
[1760923694203,1.4,185.82,185.73,2.79]
[1760923694599,6.2419,185.82,185.73,2.79]
[1760923697912,1.4,185.82,185.73,2.79]
[1760923699412,4.841,185.85,185.75,2.67]
[1760923699614,1.4,185.86,185.75,2.67]
[1760923699914,1.4,185.86,185.76,4.8433]
[1760923700112,1.4,185.86,185.77,2.67]
[1760923700812,4.841,185.85,185.77,2.67]
[1760923701212,1.4,185.86,185.77,2.67]
[1760923701912,1.4,185.86,185.78,4.8427]
[1760923702213,3.93827566,185.88,185.79,2.67]
[1760923702515,6.2405,185.87,185.79,2.67]
[1760923702711,3.93827566,185.87,185.72,2.67]
[1760923702911,1.4,185.85,185.72,2.67]
[1760923703215,5.33827566,185.85,185.72,2.67]
[1760923703415,4.8415,185.84,185.74,4.8437]
[1760923703614,4.8415,185.84,185.75,2.67]
[1760923704317,1.4,185.83,185.75,2.67]
[1760923705313,5.33827566,185.83,185.75,2.67]
[1760923705515,1.4,185.83,185.75,2.67]
[1760923706908,1.4,185.83,185.76,4.8433]
[1760923707112,3.94513936,185.85,185.77,2.67]
[1760923707415,5.34681997,185.84,185.77,2.67]
[1760923707616,3.94695253,185.83,185.77,2.67]
[1760923707810,3.94703167,185.83,185.77,2.67]
[1760923708021,1.4,185.84,185.77,2.67]
[1760923708616,5.34817573,185.84,185.77,2.67]
[1760923710319,1.4,185.84,185.77,2.67]
[1760923710722,5.34818105,185.84,185.77,2.67]
[1760923711221,1.4,185.84,185.77,2.67]
[1760923711421,5.34861979,185.84,185.77,2.67]
[1760923711919,1.4,185.83,185.73,2.67]
[1760923712119,5.34861979,185.83,185.73,2.67]
[1760923712325,1.4,185.83,185.73,2.67]
[1760923712518,1.4,185.83,185.75,2.67]
[1760923713226,5.34949738,185.83,185.75,2.67]
[1760923713419,1.4,185.83,185.75,2.67]
[1760923713619,4.8408,185.86,185.76,2.67]
[1760923713823,3.94947226,185.85,185.76,2.67]
[1760923714327,1.4,185.87,185.76,2.67]
[1760923714627,3.95013671,185.86,185.76,2.67]
[1760923715326,1.4,185.87,185.76,2.67]
[1760923716127,1.4,185.87,185.81,2.67]
[1760923719538,3.48372042,185.87,185.81,2.67]
[1760923719840,3.48372042,185.87,185.77,2.08372042]
[1760923719841,1.4,185.85,185.78,2.67]
[1760923720229,3.95620521,185.84,185.78,2.67]
[1760923720434,3.48372042,185.85,185.78,2.67]
[1760923720630,3.95650439,185.84,185.78,2.67]
[1760923720840,8.32492042,185.85,185.78,2.67]
[1760923721042,6.04028549,185.84,185.78,2.67]
[1760923721241,3.95656507,185.83,185.78,2.67]
[1760923721535,6.62067136,185.89,185.8,2.08372042]
[1760923721738,6.62067136,185.89,185.72,23.12]
[1760923721739,1.4,185.9,185.84,2.67]
[1760923722040,1.4,185.88,185.8,2.67]
[1760923722241,3.95677072,185.87,185.8,7.5122]
[1760923722441,1.4,185.88,185.8,7.5122]
[1760923722643,3.9582428,185.87,185.8,7.5122]
[1760923722840,1.4,185.88,185.8,7.5122]
[1760923723042,3.95824222,185.87,185.8,2.67]
[1760923723240,3.95824222,185.86,185.8,2.67]
[1760923723439,1.4,185.88,185.8,2.67]
[1760923723639,3.95969347,185.87,185.8,2.67]
[1760923723840,3.95969347,185.86,185.8,7.5121]
[1760923724040,1.4,185.88,185.8,7.5121]
[1760923724242,3.95987741,185.87,185.8,7.5121]
[1760923724440,3.95987741,185.86,185.8,7.5121]
[1760923724633,3.95987741,185.85,185.8,4.8421]
[1760923724836,1.4,185.88,185.81,2.67]
[1760923725042,3.96116445,185.87,185.81,2.67]
[1760923725242,5.36116445,185.86,185.81,2.67]
[1760923725444,5.36116445,185.85,185.81,2.67]
[1760923725643,1.4,185.85,185.81,2.67]
[1760923727651,1.4,185.85,185.82,2.69]
[1760923728552,6.92392042,185.89,185.82,2.69]
[1760923728852,5.3572853,185.88,185.82,2.69]
[1760923729051,1.4,185.86,185.82,2.69]
[1760923729253,3.9572853,185.85,185.82,2.69]
[1760923729453,6.2402,185.89,185.81,4.77372042]
[1760923729748,1.4,185.87,185.81,2.69]
[1760923729955,1.4,185.83,185.74,111.67957477]
[1760923730153,3.95708165,185.82,185.74,111.67957477]
[1760923730347,3.95708165,185.81,185.76,2.69]
[1760923730553,1.4,185.83,185.76,2.69]
[1760923730746,3.95856461,185.82,185.76,2.69]
[1760923731048,3.9586857,185.81,185.75,2.69]
[1760923731252,3.9586857,185.8,185.75,2.69]
[1760923731452,2.08372042,185.82,185.75,2.69]
[1760923731653,3.95928126,185.81,185.75,2.69]
[1760923731853,3.95928126,185.8,185.75,2.69]
[1760923732045,2.08372042,185.82,185.75,2.69]
[1760923732248,3.9592807,185.81,185.75,2.69]
[1760923732544,3.9592807,185.8,185.75,2.69]
[1760923732747,2.08372042,185.82,185.75,2.69]
[1760923732945,3.95936204,185.81,185.75,2.69]
[1760923733145,3.95936204,185.8,185.74,111.67957477]
[1760923733345,2.08372042,185.82,185.74,111.67957477]
[1760923733545,3.9593112,185.81,185.74,111.67957477]
[1760923733750,3.9593112,185.8,185.74,111.67957477]
[1760923733950,5.01996445,185.84,185.74,111.67957477]
[1760923733951,1.4,185.78,185.74,111.67957477]
[1760923734147,1.4,185.77,185.74,108.98957477]
[1760923734348,3.95942986,185.76,185.7,47.83]
[1760923734552,1.4,185.77,185.7,47.83]
[1760923734860,3.95964835,185.76,185.7,47.83]
[1760923735153,3.95964835,185.75,185.71,2.69]
[1760923735354,1.4,185.77,185.71,2.69]
[1760923735554,4.11326989,185.76,185.7,47.83]
[1760923735757,4.11326989,185.75,185.71,2.69]
[1760923735957,4.11326989,185.74,185.71,2.69]
[1760923736158,3.48372042,185.77,185.71,2.69]
[1760923736353,2.08372042,185.75,185.7,45.14]
[1760923736558,5.51192095,185.74,185.7,47.83]
[1760923736860,4.11208174,185.73,185.71,2.69]
[1760923737158,4.11208174,185.73,185.7,45.14]
[1760923737159,1.4,185.74,185.7,45.14]
[1760923737354,1.4,185.74,185.7,47.83]
[1760923738864,4.10934232,185.73,185.7,47.83]
[1760923739158,1.4,185.74,185.7,47.83]
[1760923739361,4.10930286,185.73,185.7,47.83]
[1760923739561,11.94658487,185.78,185.71,2.69]
[1760923739759,5.50777253,185.77,185.71,2.69]
[1760923739959,1.4,185.75,185.71,2.69]
[1760923740161,4.10777253,185.74,185.71,2.69]
[1760923740355,6.92712042,185.76,185.71,2.69]
[1760923740565,1.4,185.73,185.7,45.14]
[1760923741354,1.4,185.73,185.7,47.83]
[1760923741754,6.92712042,185.76,185.7,47.83]
[1760923741959,5.50638211,185.75,185.7,47.83]
[1760923742161,5.50638211,185.74,185.7,47.83]
[1760923742465,4.10527262,185.73,185.7,47.83]
[1760923742763,4.10567428,185.72,185.7,45.14]
[1760923743068,1.4,185.72,185.7,45.14]
[1760923744460,4.844,185.74,185.7,47.83]
[1760923744660,1.4,185.72,185.7,45.14]
[1760923744870,1.4,185.72,185.68,2.69]
[1760923745262,1.4,185.75,185.67,2.08372042]
[1760923745465,1.4,185.73,185.65,49.87372042]
[1760923745772,4.10080954,185.72,185.65,47.79]
[1760923745968,1.4,185.73,185.65,47.79]
[1760923746170,4.10081085,185.72,185.65,47.79]
[1760923746468,4.8446,185.72,185.65,47.79]
[1760923747368,4.09803833,185.71,185.65,45.1]
[1760923747571,1.4,185.69,185.65,45.1]
[1760923747871,2.08372042,185.71,185.65,45.1]
[1760923748072,4.09852115,185.7,185.65,45.1]
[1760923748272,5.49852115,185.69,185.65,45.1]
[1760923748471,1.4,185.69,185.65,45.1]
[1760923748774,1.4,185.67,185.65,45.1]
[1760923749068,1.4,185.67,185.61,2.69]
[1760923749069,4.09392701,185.68,185.61,4.77372042]
[1760923749261,4.09392701,185.7,185.65,2.08372042]
[1760923749466,1.4,185.7,185.65,2.08372042]
[1760923749769,1.4,185.7,185.66,2.69]
[1760923749969,15.80771551,185.74,185.7,2.69]
[1760923750175,4.09199835,185.73,185.66,4.77372042]
[1760923750363,4.09199835,185.72,185.66,2.69]
[1760923750568,1.4,185.7,185.66,2.69]
[1760923751074,4.8452,185.69,185.66,2.69]
[1760923751263,4.8452,185.69,185.66,4.77372042]
[1760923752273,1.4,185.7,185.66,4.73372042]
[1760923752673,4.08917522,185.72,185.67,2.65]
[1760923752867,1.4,185.71,185.67,2.65]
[1760923753469,4.845,185.7,185.67,2.65]
[1760923754472,1.4,185.71,185.68,2.08372042]
[1760923755067,6.2447,185.71,185.68,2.08372042]
[1760923755273,4.8447,185.71,185.68,4.73372042]
[1760923757081,6.2447,185.71,185.68,2.08372042]
[1760923757378,6.2447,185.71,185.66,2.08372042]
[1760923757578,6.2447,185.71,185.66,4.80372042]
[1760923757776,6.2447,185.71,185.67,2.72]
[1760923757980,1.4,185.7,185.64,2.72]
[1760923758179,4.8452,185.69,185.63,6.62372042]
[1760923758582,4.8452,185.69,185.64,2.72]
[1760923758976,4.8452,185.69,185.63,6.62372042]
[1760923759370,4.8452,185.69,185.64,2.72]
[1760923759578,4.8452,185.69,185.63,6.62372042]
[1760923759981,4.8452,185.69,185.63,9.34372042]
[1760923760580,1.4,185.7,185.63,9.34372042]
[1760923761073,4.8446,185.72,185.65,2.08372042]
[1760923761273,4.8446,185.72,185.66,2.72]
[1760923761682,8.98315328,185.72,185.66,2.72]
[1760923761980,4.8438,185.75,185.68,2.72]
[1760923762174,1.4,185.73,185.65,4.80372042]
[1760923762379,5.53886091,185.73,185.65,4.80372042]
[1760923763180,3.48372042,185.72,185.58,4.8479]
[1760923763380,1.4,185.68,185.6,2.72]
[1760923763576,5.53886091,185.68,185.6,2.72]
[1760923763782,4.8452,185.69,185.62,2.72]
[1760923763976,4.14124605,185.7,185.64,2.72]
[1760923764176,4.14124605,185.69,185.63,2.08372042]
[1760923764381,4.14124605,185.7,185.64,2.72]
[1760923764578,4.14124605,185.69,185.62,2.72]
[1760923764784,4.14124605,185.7,185.62,2.72]
[1760923764980,4.14124605,185.69,185.62,2.72]
[1760923765178,4.14124605,185.69,185.63,2.08372042]
[1760923765982,4.14124605,185.69,185.63,2.72]
[1760923766587,4.8452,185.7,185.63,2.72]
[1760923766985,8.9869295,185.7,185.63,2.72]
[1760923767185,4.8452,185.7,185.63,2.72]
[1760923767881,4.14318336,185.69,185.63,2.72]
[1760923768082,4.8452,185.7,185.63,2.72]
[1760923768383,4.14334934,185.69,185.63,2.72]
[1760923768587,4.8452,185.7,185.63,2.72]
[1760923768780,4.14460438,185.69,185.63,2.72]
[1760923768981,6.41996445,185.75,185.67,2.72]
[1760923769186,8.59480671,185.74,185.67,2.72]
[1760923769380,9.99480671,185.73,185.67,2.72]
[1760923769582,1.4,185.71,185.67,2.72]
[1760923769783,4.8445,185.72,185.67,2.72]
[1760923769983,1.4,185.7,185.67,2.72]
[1760923771977,4.49056666,185.71,185.64,4.8465]
[1760923772182,4.15021368,185.7,185.65,2.72]
[1760923772382,4.8445,185.72,185.65,2.72]
[1760923772585,8.64599901,185.71,185.65,2.72]
[1760923772883,4.15271762,185.7,185.65,2.72]
[1760923773083,5.55304055,185.69,185.62,2.72]
[1760923773290,8.64967802,185.68,185.62,2.72]
[1760923773478,4.15304055,185.67,185.61,6.93072042]
[1760923773678,1.4,185.69,185.62,2.72]
[1760923773888,8.65332976,185.68,185.62,2.72]
[1760923774085,8.65694974,185.67,185.61,6.93072042]
[1760923774287,4.15970594,185.66,185.62,2.72]
[1760923774481,1.4,185.69,185.62,2.72]
[1760923774686,8.66045617,185.68,185.62,2.72]
[1760923774989,1.4,185.66,185.62,2.72]
[1760923775391,4.16151959,185.65,185.62,2.72]
[1760923775587,1.4,185.66,185.62,2.72]
[1760923775789,4.16151996,185.65,185.62,2.72]
[1760923775989,1.4,185.66,185.62,2.72]
[1760923776189,4.16153996,185.65,185.62,2.72]
[1760923776385,1.4,185.66,185.62,2.72]
[1760923776585,8.66808159,185.65,185.61,2.72]
[1760923776788,4.16341004,185.64,185.61,2.72]
[1760923777086,1.4,185.66,185.61,2.72]
[1760923777285,8.67046879,185.65,185.6,39.1]
[1760923777491,4.16338893,185.64,185.61,2.72]
[1760923777680,1.4,185.66,185.61,2.72]
[1760923777884,8.67235319,185.65,185.6,39.1]
[1760923778081,4.16551025,185.64,185.61,2.72]
[1760923778291,4.16801105,185.63,185.61,2.72]
[1760923778493,1.4,185.66,185.61,2.72]
[1760923778688,8.67755491,185.65,185.6,39.1]
[1760923778993,4.16801105,185.64,185.6,39.1]
[1760923779193,4.16801105,185.63,185.61,2.72]
[1760923779388,1.4,185.66,185.61,2.72]
[1760923779692,8.68070365,185.65,185.61,2.72]
[1760923779894,8.68070365,185.64,185.6,39.1]
[1760923780094,4.16942091,185.63,185.6,39.1]
[1760923780288,1.4,185.66,185.61,2.72]
[1760923780482,8.68266749,185.65,185.6,39.1]
[1760923780793,8.68266749,185.64,185.61,2.72]
[1760923780991,4.1703536,185.63,185.61,2.72]
[1760923781192,1.4,185.66,185.6,39.1]
[1760923781392,1.4,185.64,185.6,39.1]
[1760923781592,4.17112058,185.63,185.6,41.82]
[1760923781792,1.4,185.64,185.6,2.72]
[1760923781992,8.68522724,185.63,185.6,2.72]
[1760923782189,4.17144617,185.62,185.6,2.72]
[1760923782395,1.4,185.64,185.6,2.72]
[1760923782692,8.68634212,185.63,185.57,49.9283]
[1760923782888,4.17193945,185.62,185.57,49.9283]
[1760923783092,1.4,185.64,185.58,2.72]
[1760923783395,8.68712952,185.63,185.58,2.72]
[1760923783691,8.68712952,185.63,185.57,49.9283]
[1760923783692,4.17162588,185.62,185.57,49.9283]
[1760923783991,1.4,185.64,185.58,2.72]
[1760923784188,8.68855143,185.63,185.58,2.72]
[1760923784397,4.1725747,185.62,185.57,49.9283]
[1760923784693,1.4,185.64,185.58,2.72]
[1760923784895,8.68865834,185.63,185.57,49.9283]
[1760923785090,4.17300662,185.62,185.58,2.72]
[1760923785296,1.4,185.64,185.58,2.72]
[1760923785493,4.15175051,185.63,185.57,49.9283]
[1760923785696,1.4,185.64,185.58,2.72]
[1760923785896,4.15173055,185.63,185.57,49.9283]
[1760923786098,1.4,185.64,185.58,2.72]
[1760923786390,4.15231463,185.63,185.58,2.72]
[1760923786593,1.4,185.64,185.58,2.72]
[1760923786793,4.15231444,185.63,185.58,2.72]
[1760923786991,1.4,185.64,185.58,2.72]
[1760923787192,4.15231444,185.63,185.58,2.72]
[1760923787392,4.80896566,185.66,185.58,2.72]
[1760923787693,8.66994415,185.65,185.6,2.89]
[1760923787894,8.02067136,185.7,185.6,2.89]
[1760923787895,6.41996445,185.7,185.6,2.89]
[1760923788090,13.4759942,185.69,185.6,2.89]
[1760923788293,14.8759942,185.68,185.6,2.89]
[1760923788489,8.96074596,185.67,185.6,47.97]
[1760923788693,4.15229351,185.66,185.6,47.97]
[1760923788893,4.15229351,185.65,185.61,2.89]
[1760923789086,4.15229351,185.64,185.61,2.89]
[1760923789286,1.4,185.68,185.61,6.15319186]
[1760923789497,8.96293915,185.67,185.61,6.15319186]
[1760923789692,4.15354127,185.66,185.61,3.26319186]
[1760923789892,4.15354127,185.65,185.63,2.89]
[1760923790088,1.4,185.68,185.63,2.89]
[1760923790394,5.01996445,185.69,185.63,2.89]
[1760923790395,4.1541107,185.67,185.63,2.89]
[1760923790698,4.1541107,185.66,185.63,2.89]
[1760923790994,4.1541107,185.65,185.64,2.89]
[1760923791192,4.1541107,185.65,185.62,7.737]
[1760923791388,4.81056482,185.68,185.62,4.847]
[1760923791592,1.4,185.66,185.63,2.89]
[1760923791794,4.15453957,185.65,185.63,2.89]
[1760923791996,4.15453957,185.64,185.63,2.89]
[1760923793899,5.01996445,185.7,185.63,1.08]
[1760923794095,8.96507927,185.69,185.67,2.89]
[1760923794400,4.15456715,185.68,185.67,2.89]
[1760923797899,6.41996445,185.74,185.67,8.8157]
[1760923798092,4.843,185.78,185.67,8.8157]
[1760923798093,8.88517351,185.75,185.69,3.26319186]
[1760923798298,5.01996445,185.74,185.69,3.26319186]
[1760923798604,1.4,185.73,185.69,6.15319186]
[1760923799503,5.01996445,185.75,185.69,6.15319186]
[1760923800198,5.01996445,185.75,185.69,2.89]
[1760923800399,5.01996445,185.74,185.67,45.06]
[1760923800598,4.8436,185.75,185.67,45.06]
[1760923800599,1.4,185.72,185.67,45.06]
[1760923800998,1.4,185.72,185.67,2.89]
[1760923801199,1.4,185.72,185.66,47.97]
[1760923801801,5.01996445,185.73,185.66,45.08]
[1760923801999,1.4,185.72,185.66,45.08]
[1760923803003,6.2444,185.72,185.66,45.08]
[1760923803906,1.4,185.72,185.66,47.97]
[1760923805706,6.41996445,185.7,185.64,45.04]
[1760923806005,6.62067136,185.72,185.64,45.04]
[1760923806006,5.01996445,185.69,185.64,45.04]
[1760923806207,1.4,185.68,185.64,47.93]
[1760923806803,1.4,185.69,185.64,47.93]
[1760923807008,9.86506445,185.7,185.64,47.93]
[1760923807410,1.4,185.69,185.64,47.93]
[1760923807605,9.86536445,185.69,185.64,45.04]
[1760923807909,1.4,185.68,185.64,47.93]
[1760923809109,1.4,185.68,185.65,2.89]
[1760923809311,5.01996445,185.71,185.65,2.89]
[1760923809506,5.01996445,185.74,185.66,2.89]
[1760923809702,5.01996445,185.76,185.73,2.89]
[1760923809903,5.01996445,185.8,185.74,51.21319186]
[1760923810110,1.4,185.78,185.75,40.1]
[1760923810412,4.13067642,185.77,185.75,2.89]
[1760923810614,4.13067642,185.76,185.75,2.89]
[1760923812308,4.78795974,185.8,185.74,45.06]
[1760923812513,4.12406158,185.79,185.74,49.9038]
[1760923812713,4.12406158,185.78,185.75,2.87]
[1760923812914,4.78795974,185.81,185.75,2.87]
[1760923813111,4.12387427,185.8,185.75,4.8434]
[1760923813310,5.01996445,185.85,185.75,2.87]
[1760923813516,4.11966704,185.84,185.75,2.87]
[1760923813817,4.11966704,185.84,185.74,48.32319186]
[1760923813818,4.11966704,185.83,185.79,2.87]
[1760923814015,4.11966704,185.82,185.8,47.97]
[1760923814210,4.11966704,185.81,185.8,45.1]
[1760923814416,5.51966704,185.81,185.8,45.1]
[1760923815117,4.11966704,185.81,185.8,45.1]
[1760923815313,5.51966704,185.81,185.75,2.87]
[1760923815620,4.10551437,185.8,185.74,16.82]
[1760923815911,1.4,185.78,185.74,19.69]
[1760923818422,1.4,185.83,185.74,16.82]
[1760923818621,4.10294251,185.82,185.75,2.87]
[1760923818819,4.10294251,185.81,185.75,2.87]
[1760923819116,1.4,185.83,185.75,2.87]
[1760923819311,4.10224294,185.82,185.75,2.87]
[1760923819513,4.10224294,185.81,185.75,2.87]
[1760923819714,1.4,185.83,185.75,2.87]
[1760923819910,4.10123211,185.82,185.75,2.87]
[1760923820116,4.10123211,185.81,185.75,2.87]
[1760923820414,4.10016268,185.82,185.75,2.87]
[1760923820619,6.2415,185.83,185.75,2.87]
[1760923820819,4.10030296,185.82,185.75,2.87]
[1760923821119,6.2415,185.83,185.75,2.87]
[1760923821414,4.09997533,185.82,185.75,2.87]
[1760923821618,6.2415,185.83,185.75,2.87]
[1760923821819,4.09915708,185.82,185.75,2.87]
[1760923822018,6.2415,185.83,185.75,2.87]